bitfinex/quotes_ETHUSD_20250802
["timestamp","ask_amount","ask_price","bid_price","bid_amount"]
[1754104484283,0.4915,3533.7,3533.6,8.97224]
[1754104492010,0.9402,3533.7,3533.6,8.97224]
[1754104494011,0.4915,3533.7,3533.6,8.97224]
[1754104496833,0.4915,3533.7,3533.6,8.87357644]
[1754104498987,0.9402,3533.7,3533.6,8.87357644]
[1754104499920,0.4915,3533.7,3533.6,8.87357644]
[1754104502829,0.1416,3533.8,3533.6,8.87357644]
[1754104503115,0.625,3533.8,3533.6,8.87357644]
[1754104503817,0.4834,3533.7,3533.6,8.87357644]
[1754104504019,0.9321,3533.7,3533.6,8.87357644]
[1754104505423,0.4834,3533.7,3533.6,8.87357644]
[1754104505917,0.9321,3533.7,3533.6,8.87357644]
[1754104506429,0.4834,3533.7,3533.6,8.87357644]
[1754104508798,0.1416,3533.8,3533.6,8.87357644]
[1754104509608,0.4834,3533.7,3533.6,0.002]
[1754104509982,0.9321,3533.7,3533.6,5.87357644]
[1754104510135,0.4834,3533.7,3533.6,5.87357644]
[1754104510796,0.9321,3533.7,3533.6,5.87357644]
[1754104513738,0.4834,3533.7,3533.6,5.87357644]
[1754104520350,0.1416,3533.8,3533.6,5.87357644]
[1754104520660,0.625,3533.8,3533.6,5.87357644]
[1754104520954,0.4834,3533.7,3533.6,5.87357644]
[1754104521117,0.9321,3533.7,3533.6,5.87357644]
[1754104521519,0.9321,3533.7,3533.6,0.002]
[1754104521715,0.9331,3533.7,3533.6,0.002]
[1754104523022,2.6351,3533.7,3533.6,0.002]
[1754104523228,1.21087,3533.7,3533.6,0.002]
[1754104523528,0.9331,3533.7,3533.6,0.002]
[1754104523928,0.001,3533.7,3533.6,0.002]
[1754104524260,0.4978,3533.7,3533.6,0.002]
[1754104525071,0.9343,3533.7,3533.6,0.002]
[1754104525425,0.001,3533.7,3533.6,0.002]
[1754104525736,0.001,3533.7,3533.6,0.4583]
[1754104525936,0.001,3533.7,3533.6,0.9146]
[1754104526631,0.001,3533.7,3533.6,0.4583]
[1754104526825,0.001,3533.7,3533.6,11.51198614]
[1754104527433,0.001,3533.7,3533.6,11.65358614]
[1754104528982,0.001,3533.7,3533.6,11.51198614]
[1754104535998,0.001,3533.7,3533.6,10.59938614]
[1754104536379,0.4978,3533.7,3533.6,10.59938614]
[1754104536782,0.9343,3533.7,3533.6,10.59938614]
[1754104537010,1.0759,3533.7,3533.6,7.59938614]
[1754104537191,1.0759,3533.7,3533.6,0.002]
[1754104537700,0.6394,3533.7,3533.6,0.002]
[1754104538900,1.0759,3533.7,3533.6,0.002]
[1754104539095,0.6394,3533.7,3533.6,0.002]
[1754104539295,0.1426,3533.7,3533.6,0.002]
[1754104542885,0.001,3533.7,3533.6,0.002]
[1754104544622,0.4978,3533.7,3533.6,0.002]
[1754104545122,0.9343,3533.7,3533.6,0.002]
[1754104545933,1.0759,3533.7,3533.6,0.002]
[1754104547032,2.7779,3533.7,3533.6,0.002]
[1754104547241,10.1688028,3533.7,3533.6,0.002]
[1754104547401,7.31043707,3533.7,3533.6,0.002]
[1754104547816,10.14033208,3533.7,3533.6,0.002]
[1754104548046,14.47933208,3533.7,3533.6,0.002]
[1754104548340,21.49733208,3533.7,3533.6,0.002]
[1754104549050,28.29933208,3533.7,3533.6,0.002]
[1754104549632,58.29933208,3533.7,3533.6,0.002]
[1754104551455,28.29933208,3533.7,3533.6,0.002]
[1754104551669,23.41033208,3533.7,3533.6,0.002]
[1754104551816,20.07583707,3533.7,3533.6,0.002]
[1754104552013,20.21743707,3533.7,3533.6,0.002]
[1754104553858,12.76423707,3533.7,3533.6,0.002]
[1754104554064,13.19343707,3533.7,3533.6,0.002]
[1754104556938,12.76423707,3533.7,3533.6,0.002]
[1754104557118,12.26613707,3533.7,3533.6,0.002]
[1754104558166,12.76423707,3533.7,3533.6,0.002]
[1754104559746,7.92713707,3533.7,3533.6,0.002]
[1754104559931,11.2836,3533.7,3533.6,0.9728]
[1754104560131,11.7817,3533.7,3533.6,0.002]
[1754104560336,13.38917,3533.7,3533.6,0.002]
[1754104562760,15.09117,3533.7,3533.6,0.002]
[1754104566208,14.16387,3533.7,3533.6,0.002]
[1754104566447,12.46187,3533.7,3533.6,0.002]
[1754104566862,11.142,3533.7,3533.6,0.002]
[1754104567062,11.2836,3533.7,3533.6,0.9728]
[1754104568160,11.2826,3533.7,3533.6,0.9728]
[1754104568791,4.4806,3533.7,3533.6,0.9728]
[1754104572114,4.4806,3533.7,3533.6,0.474]
[1754104572471,4.4806,3533.7,3533.6,0.002]
[1754104574915,4.9787,3533.7,3533.6,0.002]
[1754104575895,4.4806,3533.7,3533.6,0.002]
[1754104576097,5.89898,3533.7,3533.6,0.002]
[1754104577365,0.1426,3533.7,3533.6,0.002]
[1754104577596,4.4786,3533.7,3533.6,0.002]
[1754104577968,4.9767,3533.7,3533.6,0.002]
[1754104579201,5.4059,3533.7,3533.6,0.002]
[1754104583679,4.9767,3533.7,3533.6,0.002]
[1754104584333,5.93947,3533.7,3533.6,0.002]
[1754104586115,5.47447,3533.7,3533.6,0.002]
[1754104586589,0.001,3533.7,3533.6,0.002]
[1754104586795,4.4776,3533.7,3533.6,0.4688]
[1754104587203,4.4776,3533.7,3533.6,0.002]
[1754104593912,4.934,3533.7,3533.6,0.002]
[1754104594112,5.399,3533.7,3533.6,0.002]
[1754104594312,5.94184707,3533.7,3533.6,0.002]
[1754104596304,5.02044707,3533.7,3533.6,0.002]
[1754104596499,4.4776,3533.7,3533.6,0.002]
[1754104597499,4.934,3533.7,3533.6,0.002]
[1754104600212,5.399,3533.7,3533.6,0.002]
[1754104612115,7.101,3533.7,3533.6,0.002]
[1754104612449,5.399,3533.7,3533.6,0.002]
[1754104613144,4.934,3533.7,3533.6,0.002]
[1754104616466,5.47293,3533.7,3533.6,0.002]
[1754104616762,5.92723,3533.7,3533.6,0.002]
[1754104618041,8.17923,3533.7,3533.6,0.002]
[1754104618258,21.02712501,3533.7,3533.6,0.002]
[1754104620266,16.69212501,3533.7,3533.6,0.002]
[1754104620451,21.02312501,3533.7,3533.6,0.002]
[1754104620648,7.55793,3533.7,3533.6,0.002]
[1754104620825,11.4916,3533.7,3533.6,0.002]
[1754104621356,7.1606,3533.7,3533.6,0.002]
[1754104621555,7.1606,3533.7,3533.6,0.8964]
[1754104621738,11.4916,3533.7,3533.6,0.8964]
[1754104622568,4.4736,3533.7,3533.6,0.8964]
[1754104623393,0.1426,3533.7,3533.6,0.8964]
[1754104623600,4.4736,3533.7,3533.6,0.8964]
[1754104625388,0.1426,3533.7,3533.6,0.002]
[1754104625564,4.4736,3533.7,3533.6,0.8964]
[1754104626483,0.1426,3533.7,3533.6,0.8964]
[1754104626670,4.4736,3533.7,3533.6,0.8964]
[1754104629393,0.001,3533.7,3533.6,1.74577861]
[1754104629594,4.331,3533.7,3533.6,1.74577861]
[1754104631188,0.001,3533.7,3533.6,1.74577861]
[1754104633584,0.001,3533.9,3533.6,1.74577861]
[1754104633891,0.001,3533.9,3533.8,7.59738614]
[1754104634213,0.001,3533.9,3533.8,8.54869251]
[1754104634628,0.001,3533.9,3533.8,9.44309251]
[1754104635684,0.001,3534.6,3533.9,3.0]
[1754104636014,0.001,3534.6,3534.4,7.59738614]
[1754104636381,0.001,3534.6,3534.4,8.49178614]
[1754104636581,0.001,3534.6,3534.4,12.35512475]
[1754104638291,0.4582,3534.5,3534.4,11.46072475]
[1754104638716,0.001,3534.5,3534.4,11.46072475]
[1754104639214,0.001,3534.5,3534.4,12.49672475]
[1754104640598,0.001,3534.5,3534.4,11.60232475]
[1754104641314,0.4582,3534.5,3534.4,11.46072475]
[1754104641517,0.9125,3534.5,3534.4,10.59738614]
[1754104641675,0.9125,3534.5,3534.0,7.59738614]
[1754104641879,0.1416,3534.3,3534.0,7.59738614]
[1754104643112,0.479,3534.2,3534.0,7.59738614]
[1754104643312,0.5852,3534.3,3534.0,7.59738614]
[1754104643500,0.5852,3534.3,3534.0,8.89921539]
[1754104643704,0.479,3534.2,3534.0,8.89921539]
[1754104644094,0.5852,3534.3,3534.0,8.89921539]
[1754104644294,0.479,3534.1,3534.0,11.89921539]
[1754104644814,0.479,3534.1,3534.0,8.89921539]
[1754104645007,1.0642,3534.1,3534.0,7.59738614]
[1754104646327,0.1416,3534.1,3534.0,7.59738614]
[1754104646628,0.1416,3534.1,3534.0,8.05558614]
[1754104647926,0.1416,3534.1,3534.0,7.59738614]
[1754104648125,0.1426,3534.5,3534.0,8.65428614]
[1754104648332,0.6216,3534.5,3534.0,9.95241475]
[1754104648537,0.479,3534.4,3534.0,9.95241475]
[1754104648741,0.9226,3534.3,3534.0,7.59738614]
[1754104648903,1.0642,3534.2,3534.0,7.59738614]
[1754104649235,0.479,3534.1,3534.0,7.59738614]
[1754104649406,0.1416,3534.2,3534.0,7.59738614]
[1754104649734,0.479,3534.1,3534.0,7.59738614]
[1754104650433,0.9226,3534.1,3534.0,7.59738614]
[1754104650730,0.1416,3534.2,3534.0,7.59938614]
[1754104651237,0.6206,3534.2,3534.0,7.59938614]
[1754104652924,0.1416,3534.2,3534.0,7.59938614]
[1754104653128,0.479,3534.1,3534.0,7.59938614]
[1754104653852,0.9226,3534.1,3534.0,7.59938614]
[1754104654443,0.479,3534.1,3534.0,7.59938614]
[1754104654951,0.1416,3534.2,3534.0,8.37348475]
[1754104655152,0.1416,3534.2,3534.0,9.28878475]
[1754104655333,0.479,3534.1,3534.0,7.59938614]
[1754104660126,0.9226,3534.1,3534.0,7.59938614]
[1754104660884,0.9226,3534.1,3534.0,0.002]
[1754104674124,3.1746,3534.1,3534.0,0.002]
[1754104674279,13.02217471,3534.1,3534.0,0.002]
[1754104674479,14.34149925,3534.1,3534.0,0.002]
[1754104674681,17.34149925,3534.1,3534.0,0.002]
[1754104676524,51.66649925,3534.1,3534.0,0.002]
[1754104677782,21.66649925,3534.1,3534.0,0.002]
[1754104678119,13.51832454,3534.1,3534.0,0.002]
[1754104678296,18.42832454,3534.1,3534.0,0.002]
[1754104678496,21.80789925,3534.1,3534.0,0.002]
[1754104680244,18.97832454,3534.1,3534.0,0.002]
[1754104680613,21.80789925,3534.1,3534.0,0.002]
[1754104681447,18.97832454,3534.1,3534.0,0.002]
[1754104681643,21.80789925,3534.1,3534.0,0.002]
[1754104682230,18.97832454,3534.1,3534.0,0.002]
[1754104683020,13.73092454,3534.1,3534.0,0.002]
[1754104683336,18.55272454,3534.1,3534.0,0.002]
[1754104683821,21.38229925,3534.1,3534.0,0.002]
[1754104684168,21.82569925,3534.1,3534.0,0.002]
[1754104684468,18.99612454,3534.1,3534.0,0.002]
[1754104685023,18.55272454,3534.1,3534.0,0.002]
[1754104685223,13.73092454,3534.1,3534.0,0.002]
[1754104685546,11.4836,3534.1,3534.0,0.968]
[1754104687259,4.4656,3534.1,3534.0,0.968]
[1754104688450,0.1416,3534.1,3534.0,0.968]
[1754104688678,4.4656,3534.1,3534.0,0.968]
[1754104692171,4.4656,3534.1,3534.0,0.002]
[1754104693095,4.4656,3534.1,3534.0,0.4723]
[1754104693297,4.4656,3534.1,3534.0,0.002]
[1754104696190,4.4656,3534.1,3534.0,0.85853861]
[1754104697302,4.9634,3534.1,3534.0,0.85853861]
[1754104697610,4.9634,3534.1,3534.0,0.002]
[1754104699405,5.4068,3534.1,3534.0,0.002]
[1754104699876,5.43527072,3534.1,3534.0,0.002]
[1754104700273,5.4068,3534.1,3534.0,0.002]
[1754104700510,4.9634,3534.1,3534.0,0.002]
[1754104702599,4.4656,3534.1,3534.0,0.002]
[1754104703315,4.9421,3534.1,3534.0,0.002]
[1754104704383,6.35473,3534.1,3534.0,0.002]
[1754104704882,6.81793,3534.1,3534.0,0.002]
[1754104705554,6.35473,3534.1,3534.0,0.002]
[1754104706491,8.05673,3534.1,3534.0,0.002]
[1754104706688,4.324,3534.1,3534.0,0.4742]
[1754104706894,4.4656,3534.1,3534.0,0.9359]
[1754104707121,4.4656,3534.1,3534.0,0.4742]
[1754104707284,4.4656,3534.1,3534.0,0.002]
[1754104707830,4.4656,3534.1,3534.0,0.4742]
[1754104708113,4.4656,3534.1,3534.0,0.9359]
[1754104709235,4.4656,3534.1,3534.0,0.002]
[1754104709832,4.9421,3534.1,3534.0,0.002]
[1754104709993,6.18453,3534.1,3534.0,0.002]
[1754104710198,6.64773,3534.1,3534.0,0.002]
[1754104711529,5.70803,3534.1,3534.0,0.002]
[1754104711728,4.4656,3534.1,3534.0,0.002]
[1754104712729,4.4656,3534.1,3534.0,0.4742]
[1754104712934,4.4656,3534.1,3534.0,0.002]
[1754104713817,4.9421,3534.1,3534.0,0.002]
[1754104714009,5.43377072,3534.1,3534.0,0.002]
[1754104714703,6.67904779,3534.1,3534.0,0.002]
[1754104714909,6.65057707,3534.1,3534.0,0.002]
[1754104716827,8.35257707,3534.1,3534.0,0.002]
[1754104722425,8.90257707,3534.1,3534.0,0.002]
[1754104726507,15.92057707,3534.1,3534.0,0.002]
[1754104726953,14.43087707,3534.1,3534.0,0.002]
[1754104727111,11.4796,3534.1,3534.0,0.9359]
[1754104728852,4.4616,3534.1,3534.0,0.9359]
[1754104731715,0.1416,3534.1,3534.0,0.9359]
[1754104731922,4.4606,3534.1,3534.0,0.9359]
[1754104732156,4.319,3534.1,3534.0,0.9359]
[1754104732360,4.4606,3534.1,3534.0,0.9359]
[1754104732863,4.4606,3534.1,3534.0,0.4742]
[1754104733175,4.4606,3534.1,3534.0,0.002]
[1754104734330,4.4606,3534.1,3534.0,0.9353]
[1754104735521,4.4606,3534.1,3534.0,0.002]
[1754104735963,4.4606,3534.1,3534.0,0.4674]
[1754104736126,4.4606,3534.1,3534.0,0.9353]
[1754104738438,4.4606,3534.1,3534.0,0.4674]
[1754104738760,4.4606,3534.1,3534.0,0.002]
[1754104740365,4.4606,3534.1,3534.0,0.9353]
[1754104741240,4.4606,3534.1,3534.0,0.002]
[1754104742277,4.947,3534.1,3534.0,0.002]
[1754104747534,5.3771,3534.1,3534.0,0.002]
[1754104747738,5.91491,3534.1,3534.0,0.002]
[1754104751668,5.3771,3534.1,3534.0,0.002]
[1754104759694,5.40557072,3534.1,3534.0,0.002]
[1754104759880,7.10757072,3534.1,3534.0,0.002]
[1754104760084,7.0791,3534.1,3534.0,0.002]
[1754104760855,17.47667471,3534.1,3534.0,0.002]
[1754104761086,19.67781058,3534.1,3534.0,0.002]
[1754104761672,22.50738529,3534.1,3534.0,0.002]
[1754104761866,19.67781058,3534.1,3534.0,0.002]
[1754104764976,22.50738529,3534.1,3534.0,0.002]
[1754104765193,19.67781058,3534.1,3534.0,0.002]
[1754104772401,22.50738529,3534.1,3534.0,0.002]
[1754104774268,19.67781058,3534.1,3534.0,0.002]
[1754104774700,22.50738529,3534.1,3534.0,0.002]
[1754104775005,19.67781058,3534.1,3534.0,0.002]
[1754104775306,22.50738529,3534.1,3534.0,0.002]
[1754104775770,19.67781058,3534.1,3534.0,0.002]
[1754104776918,22.50738529,3534.1,3534.0,0.002]
[1754104778481,52.50738529,3534.1,3534.0,0.002]
[1754104784134,5.08189501,3533.7,3533.6,0.002]
[1754104784287,20.67712071,3533.7,3533.6,0.002]
[1754104784494,21.55814999,3533.7,3533.6,0.002]
[1754104787219,21.76738019,3533.7,3533.6,0.002]
[1754104787421,51.76738019,3533.7,3533.6,0.002]
[1754104789125,21.76738019,3533.7,3533.6,0.002]
[1754104789323,51.76738019,3533.7,3533.6,0.002]
[1754104790730,58.57138019,3533.7,3533.6,0.002]
[1754104792503,28.57138019,3533.7,3533.6,0.002]
[1754104792830,58.14298019,3533.7,3533.6,0.002]
[1754104793238,58.58528019,3533.7,3533.6,0.002]
[1754104794524,8.08205518,3533.5,3533.2,0.002]
[1754104794833,8.22381537,3533.3,3533.2,0.002]
[1754104800233,8.22381537,3533.3,3533.2,0.9441]
[1754104800437,15.23981537,3533.3,3533.2,0.9441]
[1754104802239,15.23981537,3533.3,3533.2,0.4669]
[1754104802447,15.23981537,3533.3,3533.2,0.002]
[1754104802610,16.33097035,3533.3,3533.2,0.002]
[1754104804402,16.33097035,3533.3,3532.8,0.002]
[1754104804634,5.252,3532.9,3532.8,0.002]
[1754104804823,12.39653582,3532.9,3532.8,0.002]
[1754104805340,12.87093582,3532.9,3532.8,0.002]
[1754104805544,14.48529754,3532.9,3532.8,0.002]
[1754104806331,14.92759754,3532.9,3532.8,0.002]
[1754104807346,44.92759754,3532.9,3532.8,0.002]
[1754104812953,9.14689754,3532.9,3532.8,0.002]
[1754104813250,11.84653582,3532.9,3532.8,0.9441]
[1754104813614,12.39653582,3532.9,3532.8,0.9441]
[1754104814625,12.53813582,3532.9,3532.8,0.9441]
[1754104815037,8.22413582,3532.9,3532.8,0.9441]
[1754104815262,12.53813582,3532.9,3532.8,0.9441]
[1754104817020,19.53813582,3532.9,3532.8,0.9441]
[1754104818051,9.3936,3532.9,3532.8,0.9441]
[1754104818223,13.7076,3532.9,3532.8,0.9441]
[1754104819348,9.3936,3532.9,3532.8,0.9441]
[1754104819548,8.8436,3532.9,3532.8,0.9441]
[1754104819760,7.1416,3532.9,3532.8,0.9441]
[1754104819923,11.4556,3532.9,3532.8,0.9441]
[1754104820671,4.4556,3532.9,3532.8,0.9441]
[1754104821850,0.1416,3532.9,3532.8,0.9441]
[1754104822059,4.4546,3532.9,3532.8,0.9441]
[1754104822861,4.4546,3532.9,3532.8,1.34154086]
[1754104825443,4.4546,3532.9,3532.8,0.9441]
[1754104829375,4.4546,3532.9,3532.8,0.002]
[1754104833477,4.9143,3532.9,3532.8,0.002]
[1754104833672,5.385,3532.9,3532.8,0.002]
[1754104834817,8.21553582,3532.9,3532.8,0.002]
[1754104834966,11.74342047,3532.9,3532.8,0.002]
[1754104835509,8.91288465,3532.9,3532.8,0.002]
[1754104836065,4.59988465,3532.9,3532.8,0.002]
[1754104836269,7.636,3532.9,3532.8,0.002]
[1754104837035,10.46653582,3532.9,3532.8,0.002]
[1754104837367,7.636,3532.9,3532.8,0.002]
[1754104838897,7.1653,3532.9,3532.8,0.002]
[1754104839205,7.636,3532.9,3532.8,0.002]
[1754104839374,6.1556,3532.9,3532.8,0.002]
[1754104839903,4.4526,3532.9,3532.8,0.002]
[1754104845172,0.1416,3532.9,3532.8,7.59938614]
[1754104845371,0.001,3533.4,3532.9,3.0]
[1754104845612,0.001,3533.4,3533.3,7.59738614]
[1754104846172,0.001,3533.4,3532.9,0.2858]
[1754104846374,4.316,3533.3,3533.0,0.89283998]
[1754104846576,0.4597,3533.2,3533.0,0.89283998]
[1754104848012,4.316,3533.3,3532.8,0.002]
[1754104848187,0.9304,3533.1,3532.8,0.002]
[1754104848372,4.315,3533.0,3532.8,0.002]
[1754104848575,4.7747,3533.0,3532.8,0.002]
[1754104848809,0.4597,3532.9,3532.8,0.002]
[1754104851819,0.9168,3532.9,3532.8,0.002]
[1754104851986,1.61028,3532.9,3532.8,0.002]
[1754104852182,0.4597,3532.9,3532.8,0.002]
[1754104852526,4.315,3532.9,3532.8,0.002]
[1754104853504,4.7865,3532.9,3532.8,0.002]
[1754104855323,4.9281,3532.9,3532.8,0.002]
[1754104861642,6.6311,3532.9,3532.8,0.002]
[1754104861938,4.9281,3532.9,3532.8,0.002]
[1754104864333,5.3852,3532.9,3532.8,0.002]
[1754104864747,5.92372,3532.9,3532.8,0.002]
[1754104864913,7.62672,3532.9,3532.8,0.002]
[1754104866535,2.3161,3532.9,3532.8,0.002]
[1754104866707,4.4526,3532.9,3532.8,0.002]
[1754104871642,6.1556,3532.9,3532.8,0.002]
[1754104871842,4.4526,3532.9,3532.8,0.002]
[1754104872140,4.9241,3532.9,3532.8,0.002]
[1754104874178,4.4526,3532.9,3532.8,0.002]
[1754104874382,4.9241,3532.9,3532.8,0.002]
[1754104875680,4.4526,3532.9,3532.8,0.002]
[1754104877681,4.4526,3532.9,3532.8,7.59938614]
[1754104878607,4.9241,3532.9,3532.8,7.59938614]
[1754104881307,5.3812,3532.9,3532.8,7.59938614]
[1754104882972,5.3812,3532.9,3532.8,0.002]
[1754104883505,7.62242,3532.9,3532.8,0.002]
[1754104884511,10.45295582,3532.9,3532.8,0.002]
[1754104885206,11.00295582,3532.9,3532.8,0.002]
[1754104886021,8.17242,3532.9,3532.8,0.002]
[1754104886944,11.00295582,3532.9,3532.8,0.002]
[1754104888647,18.01895582,3532.9,3532.8,0.002]
[1754104889047,21.01895582,3532.9,3532.8,0.002]
[1754104889618,18.18842,3532.9,3532.8,0.002]
[1754104890349,17.63842,3532.9,3532.8,0.002]
[1754104890558,21.01895582,3532.9,3532.8,0.002]
[1754104890779,5.08377619,3532.6,3532.5,0.002]
[1754104890994,11.47974939,3532.6,3532.5,0.002]
[1754104891164,12.59074939,3532.6,3532.5,0.002]
[1754104891546,15.59074939,3532.6,3532.5,0.002]
[1754104895148,12.7599732,3532.6,3532.5,0.002]
[1754104897785,15.59074939,3532.6,3532.5,0.002]
[1754104899081,12.7599732,3532.6,3532.5,0.002]
[1754104899582,15.59074939,3532.6,3532.5,0.002]
[1754104907794,22.60674939,3532.6,3532.5,0.002]
[1754104911910,52.60674939,3532.6,3532.5,0.002]
[1754104912734,29.60674939,3532.6,3532.5,0.002]
[1754104914715,29.89034939,3532.6,3532.5,0.002]
[1754104914921,29.60674939,3532.6,3532.5,0.002]
[1754104917792,59.60674939,3532.6,3532.5,0.002]
[1754104919916,29.60674939,3532.6,3532.5,0.002]
[1754104920222,55.29574939,3532.6,3532.5,0.002]
[1754104920393,29.60574939,3532.6,3532.5,0.002]
[1754104921220,29.13464939,3532.6,3532.5,0.002]
[1754104922195,23.77634939,3532.6,3532.5,0.002]
[1754104922400,28.08634939,3532.6,3532.5,0.002]
[1754104922596,28.63634939,3532.6,3532.5,0.002]
[1754104923215,29.54164939,3532.6,3532.5,0.002]
[1754104923386,29.09774939,3532.6,3532.5,0.002]
[1754104926994,25.8055732,3532.6,3532.5,0.002]
[1754104927198,23.7206,3532.6,3532.5,0.002]
[1754104928741,26.55137619,3532.6,3532.5,0.002]
[1754104929107,27.01277619,3532.6,3532.5,0.002]
[1754104929637,16.4106,3532.6,3532.5,0.002]
[1754104929810,20.7206,3532.6,3532.5,0.002]
[1754104931016,21.6259,3532.6,3532.5,0.002]
[1754104931236,26.95624428,3532.6,3532.5,0.002]
[1754104932042,23.22016809,3532.6,3532.5,0.002]
[1754104932238,20.7206,3532.6,3532.5,0.002]
[1754104932610,23.55137619,3532.6,3532.5,0.002]
[1754104932813,21.182,3532.6,3532.5,0.002]
[1754104933307,20.7206,3532.6,3532.5,0.002]
[1754104933707,14.182,3532.6,3532.5,0.002]
[1754104934548,17.01277619,3532.6,3532.5,0.002]
[1754104934724,19.48559234,3532.6,3532.5,0.002]
[1754104935524,15.74951615,3532.6,3532.5,0.002]
[1754104935720,13.7206,3532.6,3532.5,0.002]
[1754104936044,14.182,3532.6,3532.5,0.002]
[1754104936254,9.4106,3532.6,3532.5,0.002]
[1754104936549,13.7196,3532.6,3532.5,0.002]
[1754104940048,14.181,3532.6,3532.5,0.002]
[1754104941558,17.01177619,3532.6,3532.5,0.002]
[1754104942051,14.181,3532.6,3532.5,0.002]
[1754104942255,14.6174,3532.6,3532.5,0.002]
[1754104943930,19.03983973,3532.6,3532.5,0.002]
[1754104944143,19.47623973,3532.6,3532.5,0.002]
[1754104944750,22.47623973,3532.6,3532.5,0.002]
[1754104948174,22.03883973,3532.6,3532.5,0.002]
[1754104948749,22.47523973,3532.6,3532.5,0.002]
[1754104950646,29.47523973,3532.6,3532.5,0.002]
[1754104952573,29.15783673,3532.6,3532.5,0.002]
[1754104952879,29.04433973,3532.6,3532.5,0.002]
[1754104954367,29.48073973,3532.6,3532.5,0.002]
[1754104955982,29.04433973,3532.6,3532.5,0.002]
[1754104957779,20.7186,3532.6,3532.5,0.002]
[1754104958367,16.4106,3532.6,3532.5,0.002]
[1754104958564,20.7186,3532.6,3532.5,0.002]
[1754104961073,21.1855,3532.6,3532.5,0.002]
[1754104961778,14.1855,3532.6,3532.5,0.002]
[1754104963460,13.7186,3532.6,3532.5,0.002]
[1754104964472,14.1855,3532.6,3532.5,0.002]
[1754104966474,16.61154596,3532.6,3532.5,0.002]
[1754104966665,17.04794596,3532.6,3532.5,0.002]
[1754104967279,14.6219,3532.6,3532.5,0.002]
[1754104968707,14.1855,3532.6,3532.5,0.002]
[1754104969098,17.45267619,3532.6,3532.5,0.002]
[1754104969249,20.45267619,3532.6,3532.5,0.002]
[1754104969455,50.45267619,3532.6,3532.5,0.002]
[1754104969688,53.32092326,3532.6,3532.5,0.002]
[1754104971578,53.43443026,3532.6,3532.5,0.002]
[1754104972990,60.43443026,3532.6,3532.5,0.002]
[1754104974466,30.43443026,3532.6,3532.5,0.002]
[1754104974865,60.43443026,3532.6,3532.5,0.002]
[1754104975398,60.71803026,3532.6,3532.5,0.002]
[1754104981182,60.43443026,3532.6,3532.5,0.002]
[1754104982607,54.67313026,3532.6,3532.5,0.002]
[1754104982780,28.98013026,3532.6,3532.5,0.002]
[1754104983117,29.99813026,3532.6,3532.5,0.002]
[1754104983616,29.53013026,3532.6,3532.5,0.002]
[1754104983916,26.53013026,3532.6,3532.5,0.002]
[1754104984287,29.53013026,3532.6,3532.5,0.002]
[1754104984511,25.22313026,3532.6,3532.5,0.002]
[1754104984817,20.1676,3532.6,3532.5,0.002]
[1754104984994,23.7176,3532.6,3532.5,0.002]
[1754104985396,23.7176,3532.6,3532.5,0.288]
[1754104985798,27.01637619,3532.6,3532.5,0.002]
[1754104986303,27.45587619,3532.6,3532.5,0.002]
[1754104986506,30.32412326,3532.6,3532.5,0.002]
[1754104986711,23.30812326,3532.6,3532.5,0.002]
[1754104987217,53.30812326,3532.6,3532.5,0.002]
[1754104987398,49.00112326,3532.6,3532.5,0.002]
[1754104987596,53.30812326,3532.6,3532.5,0.002]
[1754104991522,22.40062326,3532.6,3532.5,0.002]
[1754104992106,23.30812326,3532.6,3532.5,0.002]
[1754104992421,15.26284707,3532.6,3532.5,0.002]
[1754104992602,16.7016,3532.6,3532.5,0.002]
[1754104993221,19.53237619,3532.6,3532.5,0.002]
[1754104993422,20.43987619,3532.6,3532.5,0.002]
[1754104994325,50.43987619,3532.6,3532.5,0.002]
[1754104994899,50.55337519,3532.6,3532.5,0.002]
[1754104995111,53.42162226,3532.6,3532.5,0.002]
[1754104998929,23.42162226,3532.6,3532.5,0.002]
[1754104999131,52.51412226,3532.6,3532.5,0.002]
[1754104999460,52.86862326,3532.6,3532.5,0.002]
[1754104999825,52.40062326,3532.6,3532.5,0.002]
[1754105001145,52.86862326,3532.6,3532.5,0.002]
[1754105001513,52.86762326,3532.6,3532.5,0.002]
[1754105002015,53.30482326,3532.6,3532.5,0.002]
[1754105003325,48.99882326,3532.6,3532.5,0.002]
[1754105003530,53.30482326,3532.6,3532.5,0.002]
[1754105004565,48.99882326,3532.6,3532.5,0.002]
[1754105004718,53.30482326,3532.6,3532.5,0.002]
[1754105005556,48.99882326,3532.6,3532.5,0.002]
[1754105005749,53.30482326,3532.6,3532.5,0.002]
[1754105006797,53.30057703,3532.6,3532.5,0.002]
[1754105009890,60.31657703,3532.6,3532.5,0.002]
[1754105010279,30.31657703,3532.6,3532.5,0.002]
[1754105010471,60.31657703,3532.6,3532.5,0.002]
[1754105011502,60.33287703,3532.6,3532.5,0.002]
[1754105014281,60.33287703,3532.6,3532.5,1e-08]
[1754105014593,53.33287703,3532.6,3532.5,1e-08]
[1754105015181,56.31787703,3532.6,3532.5,1e-08]
[1754105015404,53.33287703,3532.6,3532.5,1e-08]